bitfinex/quotes_ETHUSD_20240530
["timestamp","ask_amount","ask_price","bid_price","bid_amount"]
[1717092481851,2.62945,3803.1,3802.9,0.1274828]
[1717092483254,3.0,3803.5,3802.9,0.1274828]
[1717092483255,5.62922,3803.5,3802.9,0.1274828]
[1717092489671,2.62935,3803.3,3802.9,0.1274828]
[1717092492069,2.62949,3803.1,3802.9,0.1274828]
[1717092495481,0.55,3803.0,3802.9,0.1274828]
[1717092499201,3.55,3803.0,3802.9,0.1274828]
[1717092502706,2.62987,3802.5,3802.2,35.0]
[1717092506377,3.26087,3802.5,3802.2,35.0]
[1717092507323,3.26087,3802.5,3801.6,9.9304]
[1717092507936,3.26087,3802.5,3801.7,35.0]
[1717092508139,2.62987,3802.5,3801.8,2.63032]
[1717092508311,2.62965,3802.8,3802.0,3.26114]
[1717092508859,2.62965,3802.8,3802.1,35.0]
[1717092509902,3.26065,3802.8,3802.1,35.0]
[1717092511028,2.62984,3802.6,3802.1,35.0]
[1717092511229,3.26084,3802.6,3801.6,9.93043]
[1717092511422,2.62984,3802.6,3801.6,9.93043]
[1717092511626,0.631,3802.5,3801.6,9.93043]
[1717092511806,0.631,3802.5,3801.7,35.0]
[1717092514318,2.62984,3802.6,3801.7,35.0]
[1717092518049,3.2117172,3802.9,3802.1,2.63009]
[1717092518616,3.2117172,3802.9,3802.2,35.0]
[1717092519169,2.62977,3802.7,3802.2,35.0]
[1717092520952,2.62977,3802.7,3801.8,2.63031]
[1717092521116,2.323,3802.5,3801.5,7.3]
[1717092521451,2.323,3802.5,3801.6,37.63044]
[1717092522059,2.323,3802.5,3801.6,2.63044]
[1717092522435,2.62992,3802.4,3801.6,2.63044]
[1717092523016,3.180212,3802.4,3801.6,2.63044]
[1717092524846,2.62992,3802.4,3801.6,2.63044]
[1717092530932,2.323,3802.5,3801.4,36.57924631]
[1717092530933,2.323,3802.5,3801.8,2.63027]
[1717092531450,2.323,3802.5,3801.9,35.0]
[1717092532650,5.08147,3802.8,3801.9,35.0]
[1717092533231,0.8725172,3802.9,3802.3,2.62994]
[1717092533938,0.8725172,3802.9,3802.4,35.0]
[1717092534838,0.8725172,3802.9,3802.3,2.62994]
[1717092535591,0.8725172,3802.9,3802.4,35.0]
[1717092536272,0.8725172,3802.9,3802.3,2.62994]
[1717092536861,0.8725172,3802.9,3802.3,37.62994]
[1717092537350,0.8725172,3802.9,3802.3,2.62994]
[1717092537529,0.8725172,3802.9,3802.5,2.62977]
[1717092537733,0.8725172,3802.9,3802.6,35.0]
[1717092538495,0.8725172,3802.9,3802.5,3.26077]
[1717092538777,0.8725172,3802.9,3802.8,2.62964]
[1717092540235,0.8725172,3802.9,3802.6,35.0]
[1717092541461,3.8381172,3802.9,3802.4,2.62987]
[1717092543568,3.2071172,3802.9,3802.4,2.62987]
[1717092545507,0.631,3802.7,3802.4,2.62987]
[1717092545678,3.8381172,3802.9,3802.4,2.62987]
[1717092545868,3.2071172,3802.9,3802.4,2.62987]
[1717092546993,0.8725172,3802.9,3802.4,2.62987]
[1717092547707,0.8725172,3802.9,3802.4,3.26087]
[1717092549342,0.8725172,3802.9,3802.5,35.0]
[1717092549608,0.8725172,3802.9,3802.6,2.62976]
[1717092549979,0.8725172,3802.9,3802.6,3.26076]
[1717092550164,0.8725172,3802.9,3802.8,2.62964]
[1717092550905,0.8725172,3802.9,3802.8,3.26064]
[1717092551105,0.8725172,3802.9,3802.8,38.26064]
[1717092553898,0.8725172,3802.9,3802.8,37.62964]
[1717092554208,0.8725172,3802.9,3802.8,38.26064]
[1717092554892,0.8725172,3802.9,3802.8,37.62964]
[1717092555093,0.8725172,3802.9,3802.8,38.26064]
[1717092557016,0.8725172,3802.9,3802.8,37.62964]
[1717092557216,0.8725172,3802.9,3802.8,38.26064]
[1717092557421,0.8725172,3802.9,3802.8,3.26064]
[1717092557929,0.8725172,3802.9,3802.8,38.26064]
[1717092559436,0.8725172,3802.9,3802.8,37.62964]
[1717092559623,0.8725172,3802.9,3802.8,38.26064]
[1717092560128,0.8725172,3802.9,3802.8,37.62964]
[1717092560632,0.8725172,3802.9,3802.8,38.26064]
[1717092560998,0.8725172,3802.9,3802.8,37.62964]
[1717092561202,0.8725172,3802.9,3802.8,38.26064]
[1717092566136,0.8725172,3802.9,3802.8,37.62964]
[1717092566841,0.8725172,3802.9,3802.8,38.26064]
[1717092568939,0.8725172,3802.9,3802.8,37.62964]
[1717092569244,0.8725172,3802.9,3802.8,38.26064]
[1717092575348,0.8725172,3802.9,3802.8,37.62964]
[1717092575650,0.8725172,3802.9,3802.8,38.26064]
[1717092576207,0.8725172,3802.9,3802.8,38.54480492]
[1717092578557,0.8725172,3802.9,3802.8,37.91380492]
[1717092578796,0.8725172,3802.9,3802.8,38.54480492]
[1717092578977,0.8725172,3802.9,3802.8,37.91380492]
[1717092579178,2.4064,3805.0,3804.0,2.62875]
[1717092579318,2.4064,3805.0,3804.5,0.631]
[1717092579658,2.4064,3805.0,3804.7,0.631]
[1717092580544,2.4064,3805.0,3804.8,3.25924]
[1717092581072,2.4064,3805.0,3804.8,2.62824]
[1717092581268,2.4064,3805.0,3804.8,3.25924]
[1717092581616,2.4064,3805.0,3804.8,2.62824]
[1717092594447,1.4064,3805.0,3804.8,2.62824]
[1717092594651,0.631,3805.4,3805.2,2.62796]
[1717092596288,3.0,3806.0,3805.2,2.62796]
[1717092596459,3.0,3806.3,3805.2,2.62796]
[1717092596663,0.631,3805.6,3805.2,2.62796]
[1717092597575,2.3269,3805.5,3805.2,2.62796]
[1717092598361,2.9579,3805.5,3805.2,2.62796]
[1717092598585,0.631,3805.5,3805.2,2.62796]
[1717092598894,3.631,3806.3,3805.6,2.62767]
[1717092599197,4.23577,3806.3,3805.6,2.62767]
[1717092599398,0.631,3806.1,3805.6,2.62767]
[1717092599899,3.60477,3806.3,3805.6,2.62767]
[1717092599900,0.631,3805.9,3805.6,2.62767]
[1717092600379,0.631,3805.7,3805.6,2.62767]
[1717092600994,0.631,3805.7,3805.2,2.62794]
[1717092601194,2.4297,3805.6,3805.2,2.62794]
[1717092601400,0.631,3805.5,3805.2,2.62794]
[1717092602693,0.631,3805.3,3804.9,7.3]
[1717092603581,0.631,3805.3,3804.8,2.6282]
[1717092604102,0.631,3805.5,3804.8,2.6282]
[1717092604508,2.4297,3805.6,3804.8,2.6282]
[1717092604682,0.631,3805.5,3804.8,2.6282]
[1717092605786,2.4297,3805.6,3804.8,2.6282]
[1717092605980,0.631,3805.5,3804.8,2.6282]
[1717092607410,0.631,3805.3,3804.8,2.6282]
[1717092609993,2.3921,3805.4,3804.8,2.6282]
[1717092610189,0.631,3805.2,3804.8,2.6282]
[1717092611550,0.631,3804.9,3804.6,1.57790424]
[1717092611858,0.631,3804.7,3804.4,7.3]
[1717092611991,0.631,3804.5,3804.4,7.3]
[1717092612333,0.92493,3804.5,3804.4,7.3]
[1717092612895,0.92493,3804.5,3803.8,12.21]
[1717092612896,5.95341,3804.5,3803.8,12.21]
[1717092613190,2.4,3803.9,3803.7,7.3]
[1717092613403,0.631,3803.8,3803.7,7.3]
[1717092613965,2.9916,3803.8,3803.7,7.3]
[1717092615195,2.9916,3803.8,3803.0,19.51]
[1717092615398,0.631,3803.3,3803.0,7.3]
[1717092616398,2.62902,3803.7,3803.0,7.3]
[1717092616897,2.2984,3803.3,3803.0,7.3]
[1717092618254,2.62936,3803.2,3803.0,7.3]
[1717092618743,2.6295,3803.0,3802.3,7.3]
[1717092619036,1.514,3803.3,3801.9,7.3]
[1717092619037,2.62968,3802.8,3801.9,7.3]
[1717092619245,2.62968,3802.8,3802.4,35.0]
[1717092625342,2.62968,3802.8,3801.9,7.3]
[1717092625343,2.4022,3803.1,3802.0,2.63014]
[1717092625743,2.4022,3803.1,3802.6,35.0]
[1717092627568,2.62953,3803.0,3802.6,35.0]
[1717092627765,2.1957,3802.9,3802.6,35.0]
[1717092628843,2.62964,3802.8,3802.6,35.0]
[1717092631083,2.62913,3803.6,3802.6,2.62976]
[1717092631434,2.62923,3803.4,3802.7,35.0]
[1717092633138,2.62939,3803.2,3802.7,35.0]
[1717092633689,0.02878737,3803.1,3802.7,35.0]
[1717092634889,2.62951,3803.0,3802.7,35.0]
[1717092635378,0.02869914,3802.9,3802.7,35.0]
[1717092635754,2.62951,3803.0,3802.7,35.0]
[1717092636391,2.62951,3803.0,3802.3,7.3]
[1717092636392,2.3417,3802.9,3802.3,7.3]
[1717092636746,0.02835425,3802.8,3802.4,35.0]
[1717092637157,2.62967,3802.8,3802.4,35.0]
[1717092641675,2.62967,3802.8,3801.9,7.3]
[1717092642181,0.02790338,3802.7,3802.0,35.0]
[1717092642395,2.62967,3802.8,3802.0,35.0]
[1717092644949,2.62985,3802.5,3802.0,35.0]
[1717092652981,2.62985,3802.5,3801.8,0.631]
[1717092653209,0.631,3803.0,3801.7,1.57903388]
[1717092653210,2.62994,3802.4,3801.7,1.57903388]
[1717092653360,0.02774319,3802.3,3801.8,0.284248]
[1717092653559,2.62994,3802.4,3801.7,0.631]
[1717092653760,2.62994,3802.4,3801.8,0.284252]
[1717092654028,2.62994,3802.4,3801.7,1.57903388]
[1717092654302,2.62994,3802.4,3801.7,0.631]
[1717092654656,2.62994,3802.4,3801.8,0.28424996]
[1717092654855,2.62994,3802.4,3801.7,0.631]
[1717092655394,2.62994,3802.4,3801.8,0.631]
[1717092655797,2.62994,3802.4,3801.7,0.631]
[1717092658423,2.63011,3802.2,3801.6,0.28425006]
[1717092658601,2.63011,3802.2,3801.5,35.631]
[1717092658971,2.63011,3802.2,3801.5,35.0]
[1717092659177,5.07439,3802.0,3801.5,35.0]
[1717092661293,5.07439,3802.0,3801.2,9.9307]
[1717092661724,0.02775321,3801.9,3801.2,9.9307]
[1717092661884,0.02775321,3801.9,3801.3,35.0]
[1717092662084,5.07439,3802.0,3801.3,35.0]
[1717092663594,5.07439,3802.0,3801.2,2.6307]
[1717092664140,5.07439,3802.0,3801.2,37.6307]
[1717092664851,2.63034,3801.8,3800.9,9.93094]
[1717092665083,0.631,3801.7,3801.0,0.28429251]
[1717092665394,0.631,3801.7,3800.9,9.93094]
[1717092665542,0.631,3801.7,3800.9,10.21524291]
[1717092665741,0.631,3801.7,3800.9,9.93094]
[1717092666064,0.631,3801.7,3800.9,10.21524023]
[1717092666635,2.63034,3801.8,3800.9,10.21524023]
[1717092667212,0.631,3801.7,3800.9,10.21524023]
[1717092667641,0.631,3801.7,3800.9,10.21523753]
[1717092668360,2.63034,3801.8,3800.9,10.21523756]
[1717092668648,2.63034,3801.8,3800.9,9.93094]
[1717092668945,2.63034,3801.8,3800.9,45.21523756]
[1717092669208,2.63034,3801.8,3800.9,44.93094]
[1717092669355,2.63034,3801.8,3800.9,45.56194]
[1717092670255,2.63034,3801.8,3800.9,44.93094]
[1717092670565,2.63034,3801.8,3800.9,45.56194]
[1717092670732,2.63057,3801.5,3800.9,42.3]
[1717092671061,2.63057,3801.5,3800.9,7.3]
[1717092671458,2.63057,3801.5,3800.9,42.3]
[1717092673947,2.63057,3801.5,3800.9,35.0]
[1717092674731,0.631,3801.4,3800.6,2.63115]
[1717092674936,2.6307,3801.3,3800.6,2.91546382]
[1717092675164,2.6307,3801.3,3800.6,35.28431382]
[1717092675368,0.631,3801.0,3800.5,7.3]
[1717092675881,0.02457241,3800.9,3800.5,7.3]
[1717092676040,0.631,3801.0,3800.5,7.3]
[1717092677586,0.02391587,3800.9,3800.5,7.3]
[1717092677882,0.02391587,3800.9,3800.6,35.0]
[1717092678083,0.631,3801.0,3800.6,35.0]
[1717092678841,0.631,3800.7,3800.6,35.0]
[1717092679041,3.0335,3800.7,3800.5,7.3]
[1717092679264,2.65493764,3800.6,3800.5,7.3]
[1717092679476,2.65493764,3800.6,3800.0,2.0]
[1717092679662,2.65493764,3800.6,3800.1,35.0]
[1717092679863,2.63116,3800.6,3800.0,2.0]
[1717092680053,0.60468537,3800.5,3800.0,2.0]
[1717092680466,0.60468537,3800.5,3800.1,35.0]
[1717092680664,0.581,3800.5,3800.1,35.0]
[1717092681252,0.581,3800.5,3800.0,2.0]
[1717092681253,2.63137,3800.3,3800.0,2.0]
[1717092681454,0.02347369,3800.2,3800.0,2.0]
[1717092681658,0.631,3800.1,3800.0,2.0]
[1717092681886,0.6560231,3800.1,3800.0,2.0]
[1717092682576,0.0250231,3800.1,3800.0,2.0]
[1717092683071,5.63103,3800.8,3800.0,2.0]
[1717092683072,2.3216,3800.7,3800.0,2.0]
[1717092683287,0.02506529,3800.6,3800.0,2.0]
[1717092683492,2.63126,3800.5,3800.1,35.0]
[1717092683647,2.63137,3800.3,3800.0,2.0]
[1717092683984,0.02482405,3800.2,3800.0,2.0]
[1717092684287,0.02482405,3800.2,3800.1,35.0]
[1717092686582,2.63114,3800.7,3800.1,35.0]
[1717092686989,0.02353596,3800.6,3800.4,2.63126]
[1717092687418,2.2648,3801.3,3800.4,2.63126]
[1717092688977,0.02396698,3801.2,3800.4,2.63126]
[1717092689207,0.02396698,3801.2,3800.5,35.0]
[1717092689556,2.2648,3801.3,3800.5,35.0]
[1717092690068,2.2648,3801.3,3800.6,2.63115]
[1717092690483,0.02400708,3801.2,3800.6,2.63115]
[1717092692395,2.2861,3801.7,3800.6,2.63115]
[1717092692766,2.65470892,3801.6,3800.6,2.63115]
[1717092694161,2.65470892,3801.6,3800.8,2.63101]
[1717092694356,0.02420892,3801.6,3801.0,2.63082]
[1717092694757,2.63021,3802.0,3801.0,2.63082]
[1717092694956,0.02420085,3801.5,3801.0,2.63082]
[1717092695201,2.63021,3802.0,3801.1,0.0554]
[1717092695363,0.02419951,3801.4,3801.1,0.0554]
[1717092695578,2.63021,3802.0,3801.2,2.63071]
[1717092695962,0.02442986,3801.9,3801.2,2.63071]
[1717092699900,2.3415,3802.2,3801.2,2.63071]
[1717092700113,0.02471244,3802.1,3801.5,2.63053]
[1717092700666,0.02471244,3802.1,3801.2,0.0554]
[1717092700862,2.4861,3802.8,3801.2,0.0554]
[1717092701108,2.4861,3802.8,3801.2,1.634655]
[1717092701735,2.4964,3803.6,3801.3,1.579255]
[1717092701882,2.62941,3803.2,3801.9,2.63022]
[1717092702097,3.02454988,3803.1,3801.9,2.63022]
[1717092702276,0.02454988,3803.1,3801.9,2.63022]
[1717092702671,2.2987,3803.0,3801.9,2.63022]
[1717092702909,0.02456105,3802.9,3801.9,2.63022]
[1717092703113,3.02456105,3802.9,3801.9,2.63022]
[1717092703914,2.62968,3802.8,3801.5,2.63048]
[1717092704071,2.62987,3802.5,3801.5,2.63048]
[1717092704270,0.02436728,3802.4,3801.5,2.63048]
[1717092711943,2.63035,3801.8,3801.3,7.25]
[1717092712102,2.63035,3801.8,3800.8,7.3054]
[1717092712305,0.02389154,3801.7,3800.8,7.3054]
[1717092712928,0.02389154,3801.7,3800.9,2.63093]
[1717092714055,2.4314,3801.5,3800.8,7.25]
[1717092714314,0.02521728,3801.4,3800.8,7.25]
[1717092716222,0.50871073,3801.3,3800.8,7.25]
[1717092716461,0.02503046,3801.2,3800.8,7.25]
[1717092716645,0.50871073,3801.3,3800.8,7.25]
[1717092716646,3.13939073,3801.3,3800.8,7.25]
[1717092716846,0.02509671,3801.2,3800.8,7.25]
[1717092717040,2.63068,3801.3,3800.8,7.25]
[1717092717233,0.02509671,3801.2,3800.8,7.25]
[1717092717461,2.63068,3801.3,3800.8,7.25]
[1717092717653,0.53130471,3801.2,3800.5,2.63118]
[1717092722035,0.53130471,3801.2,3800.3,7.25]
[1717092722274,0.506208,3801.2,3800.3,7.25]
[1717092722634,0.02503642,3801.1,3800.3,7.25]
[1717092723072,0.02503642,3801.1,3800.4,2.6313]
[1717092723940,0.03137336,3801.1,3800.4,2.6313]
[1717092724564,2.63068,3801.3,3800.4,2.6313]
[1717092724767,0.0288882,3801.0,3800.4,2.6313]
[1717092725103,0.02881786,3800.9,3800.4,2.6313]
[1717092725380,0.506208,3801.2,3800.4,2.6313]
[1717092725577,0.03135317,3800.8,3800.4,2.6313]
[1717092725787,0.506208,3801.2,3800.4,2.6313]
[1717092725995,0.03135317,3800.8,3800.4,2.6313]
[1717092726146,0.3136888,3801.1,3800.4,2.6313]
[1717092726341,0.03135317,3800.8,3800.4,2.6313]
[1717092726542,0.3136888,3801.1,3800.4,2.6313]
[1717092726795,0.03135317,3800.8,3800.4,2.6313]
[1717092727084,0.3136888,3801.1,3800.4,2.6313]
[1717092727262,0.03135317,3800.8,3800.4,2.6313]
[1717092727467,0.34505768,3801.0,3800.4,2.6313]
[1717092727797,0.03142991,3800.9,3800.4,2.6313]
[1717092729073,0.03142991,3800.9,3800.3,7.25]
[1717092729383,0.33211956,3800.9,3800.0,4.68691]
[1717092729585,0.33211956,3800.9,3800.0,4.63151]
[1717092729978,2.63102,3800.8,3800.0,4.63151]
[1717092730692,2.4436,3800.7,3800.0,2.0]
[1717092730852,2.73991396,3800.7,3800.0,2.0]
[1717092731986,0.03135901,3800.6,3800.0,2.0]
[1717092732484,2.63102,3800.8,3800.0,2.0]
[1717092732894,2.63102,3800.8,3800.1,2.6315]
[1717092733162,2.63079,3801.2,3800.1,2.6869]
[1717092733445,2.273,3801.3,3800.4,2.63127]
[1717092733655,0.03142628,3801.1,3800.4,2.63127]
[1717092733790,0.02887776,3801.2,3800.4,2.63127]
[1717092733989,2.273,3801.3,3800.4,2.63127]
[1717092734304,5.05072,3801.6,3800.7,2.63108]
[1717092734794,0.02679165,3801.5,3800.7,2.63108]
[1717092735019,3.02679165,3801.5,3800.7,2.63108]
[1717092735223,0.02679165,3801.5,3800.7,2.63108]
[1717092735611,3.02679165,3801.5,3800.7,2.63108]
[1717092738927,0.02679165,3801.5,3800.7,2.63108]
[1717092739375,0.02679165,3801.5,3800.8,35.0]
[1717092739699,5.05072,3801.6,3800.8,35.0]
[1717092740733,5.05072,3801.6,3800.9,2.68353605]
[1717092740939,5.4431,3801.9,3801.1,2.63079]
[1717092741161,0.0273329,3801.8,3801.1,2.63079]
[1717092741453,0.0273329,3801.8,3801.2,35.0]
[1717092741619,0.0273329,3801.8,3801.3,2.63064]
[1717092741798,5.06965,3802.0,3801.3,2.63064]
[1717092741799,2.4394,3802.0,3801.3,2.63064]
[1717092741997,2.4394,3802.3,3801.6,2.63045]
[1717092742342,2.87897009,3802.3,3801.7,35.0]
[1717092742544,3.50997009,3802.3,3801.7,35.0]
[1717092742701,2.87897009,3802.3,3801.7,35.0]
[1717092742899,3.50997009,3802.3,3801.7,35.0]
[1717092743218,3.0,3802.2,3801.7,35.0]
[1717092743614,0.02579599,3802.1,3801.7,35.0]
[1717092744636,3.0,3802.2,3801.7,35.0]
[1717092745662,2.4394,3802.3,3801.7,35.0]
[1717092745851,2.62997,3802.4,3801.7,35.0]
[1717092746272,2.4552,3802.1,3801.1,2.63081]
[1717092746472,5.08537,3802.1,3801.4,2.6306]
[1717092746772,0.75638391,3802.4,3801.5,35.0]
[1717092746773,3.18020666,3802.4,3801.5,35.0]
[1717092746959,3.22713839,3802.3,3801.5,35.0]
[1717092750134,3.0,3802.3,3801.5,35.0]
[1717092750434,5.4552,3802.4,3801.5,35.0]
[1717092751672,3.0,3802.4,3801.7,2.63035]
[1717092751843,3.0,3802.8,3801.7,2.63035]
[1717092752090,2.4552,3802.9,3801.7,2.63035]
[1717092752290,2.62973,3802.7,3802.0,2.63019]
[1717092752494,5.02745,3802.5,3801.8,35.0]
[1717092753944,2.63003,3802.3,3801.8,35.0]
[1717092754240,0.0265418,3802.2,3801.8,35.0]
[1717092754601,0.0265418,3802.2,3801.2,9.88074]
[1717092754602,2.63012,3802.1,3801.2,9.88074]
[1717092754943,0.02874205,3802.0,3801.2,9.88074]
[1717092755232,0.02874205,3802.0,3801.3,35.0]
[1717092755594,2.63012,3802.1,3801.3,35.0]
[1717092757058,2.63035,3801.8,3801.3,35.0]
[1717092757359,2.63035,3801.8,3801.2,7.25]
[1717092757360,2.2528,3801.7,3801.2,7.25]
[1717092757728,2.2528,3801.7,3801.2,42.25]
[1717092758886,2.2528,3801.7,3801.2,35.0]
[1717092759942,2.6305,3801.6,3801.2,35.0]
[1717092760820,2.6305,3801.6,3800.8,2.63096]
[1717092761418,2.6305,3801.6,3800.9,35.0]
[1717092762970,2.2528,3801.7,3801.0,2.63086]
[1717092763516,2.63071,3801.3,3801.1,35.0]
[1717092763850,2.63083,3801.1,3800.3,8.82946034]
[1717092764050,2.63083,3801.1,3800.3,7.25]
[1717092764216,2.63083,3801.1,3800.4,35.0]
[1717092767118,2.63103,3800.8,3800.4,35.0]
[1717092768077,2.444,3800.7,3800.4,35.0]
[1717092768991,2.63116,3800.6,3800.0,2.0]
[1717092769418,2.63116,3800.6,3800.1,35.0]
[1717092774667,2.63138,3800.3,3800.1,35.0]
[1717092775169,2.4946,3800.2,3800.1,35.0]
[1717092776051,2.6315,3800.1,3800.0,2.0]
[1717092777342,5.072,3800.1,3800.0,2.0]
[1717092777672,8.072,3800.1,3800.0,2.0]
[1717092777845,8.622,3800.1,3800.0,2.0]
[1717092778365,10.137,3800.1,3800.0,2.0]
[1717092778568,11.1507,3800.1,3800.0,2.0]
[1717092779129,11.1507,3800.1,3798.7,12.47030447]
[1717092779130,2.63192,3799.6,3798.7,0.26030447]
[1717092779329,2.63192,3799.6,3798.3,0.0998759]
[1717092779330,4.14713,3799.2,3798.3,0.0998759]
[1717092779561,6.95753,3799.2,3798.3,0.0998759]
[1717092779766,14.04001046,3799.2,3798.3,0.0998759]
[1717092780284,2.63268,3798.4,3798.3,0.0998759]
[1717092786003,2.63242,3798.8,3798.3,0.0998759]
[1717092786517,2.63242,3798.8,3798.7,35.0]
[1717092787012,2.63217,3799.2,3798.7,35.0]
[1717092788210,2.63228,3799.0,3798.7,35.0]
[1717092790025,3.0,3799.1,3798.7,35.0]
[1717092790228,1.515,3799.3,3798.7,35.0]
[1717092790229,4.515,3799.3,3798.7,35.0]
[1717092790442,3.18217,3799.2,3798.7,35.0]
[1717092790750,3.0,3799.1,3798.7,35.0]
[1717092791261,2.6319,3799.6,3798.7,35.0]
[1717092791487,2.6319,3799.6,3798.8,2.63237]
[1717092792177,2.6319,3799.6,3798.9,35.0]
[1717092792718,2.4069,3799.9,3798.9,35.0]
[1717092792918,2.63173,3799.8,3798.9,35.0]
[1717092793240,3.0,3799.7,3798.9,35.0]
[1717092794426,0.02,3800.0,3799.1,2.2073]
[1717092795166,0.02,3800.0,3799.2,35.0]
[1717092795471,0.02,3800.0,3799.3,2.63203]
[1717092795673,0.02,3800.0,3799.6,2.63182]
[1717092795824,0.02,3800.0,3799.8,2.63171]
[1717092796025,0.02,3800.0,3799.9,35.0]
[1717092800834,0.02,3800.0,3799.9,37.2073]
[1717092801664,0.02,3800.0,3799.9,38.7223]
[1717092804762,0.02,3800.0,3799.9,37.2073]
[1717092812733,2.4697,3801.4,3800.0,2.63156]
[1717092812935,2.4697,3801.4,3800.0,9.88156]
[1717092815181,2.4697,3801.4,3800.8,2.63101]
[1717092816774,3.0,3801.8,3801.1,2.63078]
[1717092817079,0.03133276,3801.8,3801.1,2.63078]
[1717092817245,0.03133276,3801.8,3801.3,2.63065]
[1717092817451,2.63015,3802.1,3801.3,2.63065]
[1717092817652,3.0,3802.0,3801.3,2.63065]
[1717092817951,3.03165939,3802.0,3801.3,2.63065]
[1717092818134,0.03165939,3802.0,3801.3,2.63065]
[1717092818776,2.4284,3802.2,3801.3,2.63065]
[1717092818945,0.0347089,3801.9,3801.3,2.63065]
[1717092819286,5.4284,3802.2,3801.5,2.63047]
[1717092819287,0.03459247,3801.8,3801.5,2.63047]
[1717092819874,0.03450811,3801.7,3801.5,2.63047]
[1717092820402,5.4284,3802.2,3801.5,2.63047]
[1717092820537,0.03450811,3801.7,3801.5,2.63047]
[1717092820735,2.4284,3802.2,3801.5,2.63047]
[1717092822386,2.4284,3802.2,3801.8,2.63031]
[1717092822676,0.02929863,3802.1,3801.8,2.63031]
[1717092826273,0.24576986,3802.0,3801.8,2.63031]
[1717092826582,0.24576986,3802.0,3801.4,2.63054]
[1717092826743,0.02698948,3801.9,3801.4,2.63054]
[1717092826942,2.3934,3801.8,3801.4,2.63054]
[1717092827386,0.0268597,3801.7,3801.4,2.63054]
[1717092827586,0.0268597,3801.7,3801.0,9.88083]
[1717092827877,2.3934,3801.8,3801.0,9.88083]
[1717092828700,2.92032999,3801.8,3801.0,9.88083]
[1717092829063,0.03161921,3801.7,3801.0,9.88083]
[1717092829772,2.4596,3801.6,3801.0,9.88083]
[1717092830289,0.03146582,3801.5,3801.0,9.88083]
[1717092832196,0.03146582,3801.5,3801.0,2.63083]
[1717092832606,2.4596,3801.6,3801.0,2.63083]
[1717092832755,2.49094202,3801.6,3801.0,2.63083]
[1717092833867,0.03134202,3801.6,3801.4,2.6306]
[1717092834293,2.3913,3802.0,3801.4,2.6306]
[1717092834615,0.23913,3801.9,3801.4,2.6306]
[1717092834908,0.03156004,3801.8,3801.4,2.6306]
[1717092835666,2.3913,3802.0,3801.4,2.6306]
[1717092836168,0.0317556,3801.9,3801.4,2.6306]
[1717092842905,0.0317556,3801.9,3801.2,2.63069]
[1717092843308,2.3356,3802.3,3801.2,2.63069]
[1717092843530,0.02687539,3801.8,3801.7,2.63039]
[1717092843733,3.0,3802.2,3801.7,2.63039]
[1717092844252,0.02513649,3802.1,3801.7,2.63039]
[1717092846747,0.02513649,3802.1,3801.2,0.28425961]
[1717092846968,0.02513649,3802.1,3801.9,2.63019]
[1717092847296,0.02513649,3802.1,3801.4,4.83785]
[1717092847297,2.4937,3803.0,3802.6,2.62974]
[1717092847704,0.02564478,3802.9,3802.6,2.62974]
[1717092848111,2.4937,3803.0,3802.6,2.62974]
[1717092848550,0.02564478,3802.9,3802.6,2.62974]
[1717092848903,2.3185,3803.3,3802.6,2.62974]
[1717092849244,0.23185,3803.2,3802.6,2.62974]
[1717092849548,0.23185,3803.2,3802.9,2.62955]
[1717092849549,0.02582544,3803.2,3802.9,2.62955]
[1717092849881,2.3185,3803.5,3802.9,2.62955]
[1717092849999,0.02576523,3803.1,3802.9,2.62955]
[1717092850200,2.3185,3803.5,3802.9,2.62955]
[1717092850500,0.02594587,3803.4,3802.9,2.62955]
[1717092851347,0.82329846,3803.4,3802.9,2.62955]
[1717092857116,0.82329846,3803.4,3802.5,2.62979]
[1717092858554,0.02594587,3803.4,3803.0,2.62948]
[1717092858770,2.62863,3804.3,3803.3,2.62927]
[1717092859480,2.62863,3804.3,3803.4,35.0]
[1717092859629,3.135793,3804.3,3803.4,35.0]
[1717092859829,3.0,3804.2,3803.4,35.0]
[1717092861140,1.515,3803.8,3803.1,7.25]
[1717092861457,1.515,3803.8,3802.7,12.21]
[1717092861458,2.2643,3803.3,3802.7,19.46]
[1717092861653,2.2643,3803.3,3802.2,42.25]
[1717092861850,1.515,3803.4,3802.2,7.25]
[1717092861851,2.2643,3802.9,3802.2,7.25]
[1717092862276,2.2643,3802.9,3802.3,35.0]
[1717092862501,2.62966,3802.8,3802.2,7.25]
[1717092862624,0.940896,3802.7,3802.2,7.25]
[1717092862824,2.2643,3802.6,3802.2,7.25]
[1717092863572,2.62985,3802.5,3802.2,7.25]
[1717092863772,2.62985,3802.5,3801.4,7.25]
[1717092864739,2.62985,3802.5,3801.5,35.0]
[1717092864923,0.5835046,3802.4,3801.5,35.0]
[1717092866493,2.62985,3802.5,3801.5,35.0]
[1717092866631,2.2643,3802.6,3801.9,2.6302]
[1717092866833,2.62932,3803.3,3801.6,2.2073]
[1717092866834,2.3334,3803.1,3801.6,2.2073]
[1717092867230,2.3334,3803.1,3802.0,35.0]
[1717092868073,2.3334,3803.1,3802.3,2.62997]
[1717092868974,3.0,3803.2,3802.1,2.2073]